bitfinex/quotes_SOLUSD_20220227
["timestamp","ask_amount","ask_price","bid_price","bid_amount"]
[1645921287282,1.53796406,90.389,90.33,16.6075]
[1645921287478,16.6085,90.39,90.33,16.6075]
[1645921288280,1.66837713,90.389,90.32,16.6104]
[1645921288486,16.6113,90.38,90.321,4.426]
[1645921288680,1.83226527,90.379,90.32,16.6104]
[1645921291684,1.83226527,90.379,90.321,4.426]
[1645921291885,1.83226527,90.379,90.32,16.6104]
[1645921301891,16.6115,90.37,90.32,16.6104]
[1645921302094,1.61595424,90.369,90.32,16.6104]
[1645921302291,1.61595424,90.369,90.315,22.7463]
[1645921307298,1.61595424,90.369,90.32,16.6114]
[1645921307605,23.1092,90.389,90.32,16.6114]
[1645921307606,24.79046123,90.389,90.32,16.6114]
[1645921307803,24.79046123,90.389,90.315,22.7463]
[1645921307804,24.79046123,90.389,90.321,4.426]
[1645921308000,24.79046123,90.389,90.316,4.426]
[1645921308800,24.79046123,90.389,90.315,22.7463]
[1645921309501,16.6092,90.38,90.33,16.608]
[1645921309902,15.6092,90.38,90.33,16.608]
[1645921320530,1.76141545,90.379,90.33,16.608]
[1645921320931,16.6103,90.37,90.33,16.608]
[1645921324231,4.426,90.388,90.32,16.6121]
[1645921324232,16.6121,90.36,90.32,16.6121]
[1645921325132,1.68147752,90.359,90.32,16.6121]
[1645921325332,1.68147752,90.359,90.315,22.7463]
[1645921327938,16.6137,90.35,90.296,16.332]
[1645921328136,1.5099508,90.349,90.3,16.6155]
[1645921328543,4.428,90.361,90.271,19.41998819]
[1645921328544,6.0224632,90.361,90.29,16.3707]
[1645921328747,6.0224632,90.361,90.258,22.8216]
[1645921328748,111.2,90.359,90.258,22.8216]
[1645921328939,16.617,90.34,90.258,22.8216]
[1645921329141,25.07166437,90.339,90.258,22.8216]
[1645921329341,6.00116277,90.338,90.258,22.8216]
[1645921329542,6.00116277,90.338,90.251,4.429]
[1645921329543,37.14495404,90.338,90.251,4.429]
[1645921329741,37.14495404,90.338,90.25,112.2]
[1645921329742,1.67533836,90.337,90.25,112.2]
[1645921329941,32.81912963,90.337,90.25,112.2]
[1645921330140,37.28366421,90.336,90.25,112.2]
[1645921330341,16.6248,90.32,90.25,112.2]
[1645921330541,6.03964602,90.319,90.25,112.2]
[1645921330742,37.18343729,90.319,90.221,4.429]
[1645921330944,50.39167921,90.318,90.221,4.429]
[1645921331143,6.14781415,90.317,90.221,4.429]
[1645921331344,37.29160542,90.317,90.221,20.888]
[1645921331544,16.6286,90.3,90.221,20.888]
[1645921331741,1.92312677,90.299,90.221,20.888]
[1645921332145,7.17,90.3,90.221,20.888]
[1645921332343,27.6597,90.299,90.221,20.888]
[1645921332545,1.58884861,90.298,90.221,20.888]
[1645921333543,16.6279,90.28,90.221,20.888]
[1645921333743,25.2879,90.28,90.221,20.888]
[1645921333944,1.723925,90.279,90.221,16.459]
[1645921334143,8.66,90.28,90.221,16.459]
[1645921334759,16.631,90.27,90.221,16.459]
[1645921336954,1.71549003,90.269,90.221,16.459]
[1645921337155,16.6334,90.26,90.221,16.459]
[1645921337361,23.0634,90.26,90.221,16.459]
[1645921338162,23.0634,90.26,90.22,1.3621226]
[1645921338356,1.82179286,90.259,90.22,1.3621226]
[1645921338557,16.6373,90.25,90.22,1.3621226]
[1645921338755,1.50365431,90.249,90.22,1.3621226]
[1645921339158,6.11089172,90.259,90.22,1.3621226]
[1645921339758,1.67889172,90.259,90.22,1.3621226]
[1645921339960,6.43,90.26,90.22,1.3621226]
[1645921340579,16.636,90.24,90.22,1.3621226]
[1645921342687,24.026,90.24,90.22,1.3621226]
[1645921343984,16.636,90.24,90.22,1.3621226]
[1645921344182,1.69147334,90.266,90.22,1.3621226]
[1645921344382,1.65158569,90.275,90.22,1.3621226]
[1645921344884,1.93938294,90.274,90.22,1.3621226]
[1645921345083,4.432,90.273,90.22,1.3621226]
[1645921345286,6.25349838,90.273,90.22,1.3621226]
[1645921345484,16.6324,90.26,90.22,1.3621226]
[1645921345685,1.69932907,90.259,90.22,1.3621226]
[1645921345885,9.22932907,90.259,90.22,1.3621226]
[1645921346085,4.432,90.258,90.22,1.3621226]
[1645921346385,34.95008394,90.258,90.22,1.3621226]
[1645921346586,1.81152115,90.257,90.191,23.2726]
[1645921346785,1.81152115,90.257,90.15,16.03]
[1645921346786,6.24769019,90.256,90.15,16.03]
[1645921346987,36.76577413,90.256,90.15,16.03]
[1645921347187,32.30417536,90.255,90.16,111.2]
[1645921347388,1.96674392,90.253,90.161,24.7542]
[1645921347588,1.56385719,90.249,90.17,16.6377]
[1645921348191,1.56385719,90.249,90.161,24.7542]
[1645921348390,24.7714,90.254,90.162,111.2]
[1645921348595,24.7714,90.254,90.184,22.5934]
[1645921349393,1.85721991,90.253,90.184,22.5934]
[1645921349592,16.6372,90.24,90.184,22.5934]
[1645921351294,1.87291978,90.239,90.184,22.5934]
[1645921352905,16.6372,90.24,90.184,22.5934]
[1645921354099,16.6372,90.24,90.19,16.6348]
[1645921354702,16.6338,90.25,90.19,16.6348]
[1645921354902,4.433,90.269,90.191,111.2]
[1645921355199,4.433,90.287,90.211,111.2]
[1645921355403,23.6339,90.328,90.211,118.75]
[1645921355404,4.432,90.308,90.211,118.75]
[1645921355601,1.84417732,90.316,90.211,118.75]
[1645921355801,4.431,90.315,90.212,48.0034]
[1645921356001,1.81469892,90.289,90.212,48.0034]
[1645921356201,1.81469892,90.289,90.22,16.6288]
[1645921356202,4.432,90.288,90.22,16.6288]
[1645921356600,4.431,90.297,90.22,16.6288]
[1645921357602,16.63,90.27,90.22,16.6288]
[1645921358406,1.59089549,90.298,90.22,16.6288]
[1645921358805,16.6283,90.28,90.22,16.6288]
[1645921360108,16.6283,90.28,90.221,111.2]
[1645921360308,16.6262,90.29,90.23,16.6262]
[1645921362813,24.8977,90.299,90.23,16.6262]
[1645921362814,4.431,90.312,90.231,111.2]
[1645921363012,4.431,90.324,90.25,16.6203]
[1645921363210,23.9489,90.323,90.251,24.0236]
[1645921363810,16.6214,90.32,90.251,24.0236]
[1645921364017,16.6214,90.32,90.26,16.6211]
[1645921365813,23.9489,90.323,90.26,16.6211]
[1645921365814,16.6223,90.31,90.26,16.6211]
[1645921366813,4.43,90.322,90.26,16.6211]
[1645921367011,23.9489,90.323,90.26,16.6211]
[1645921367412,16.6214,90.32,90.26,16.6211]
[1645921368414,4.43,90.322,90.26,16.6211]
[1645921369513,16.6223,90.31,90.26,16.6211]
[1645921373935,16.6206,90.32,90.26,16.6211]
[1645921374916,16.6206,90.32,90.261,111.2]
[1645921375119,16.6206,90.32,90.27,16.6193]
[1645921375421,4.43,90.337,90.271,111.2]
[1645921375617,1.45223931,90.351,90.271,111.2]
[1645921375818,4.429,90.359,90.273,111.2]
[1645921376121,6.12767419,90.362,90.273,111.2]
[1645921376317,16.6137,90.36,90.281,111.2]
[1645921377420,16.6137,90.36,90.282,111.2]
[1645921377621,16.6137,90.36,90.3,16.6133]
[1645921380620,16.6117,90.37,90.301,111.2]
[1645921380826,23.6463,90.378,90.31,16.6102]
[1645921381021,23.6463,90.378,90.311,22.9781]
[1645921382022,23.6463,90.378,90.33,16.61]
[1645921385123,16.6104,90.38,90.331,111.2]
[1645921385324,4.426,90.399,90.34,16.6075]
[1645921385525,4.426,90.412,90.34,16.6075]
[1645921385725,1.59696835,90.412,90.341,4.425]
[1645921386127,1.59696835,90.412,90.333,4.425]
[1645921386727,16.6065,90.4,90.34,16.6084]
[1645921386928,5.96957812,90.399,90.332,24.479]
[1645921387128,4.426,90.399,90.332,24.479]
[1645921387330,4.426,90.41,90.332,24.479]
[1645921388333,1.75388811,90.411,90.332,24.479]
[1645921388630,1.64092578,90.379,90.332,24.479]
[1645921389352,5.72,90.384,90.312,24.717]
[1645921389552,6.04182962,90.383,90.313,23.5261]
[1645921389754,4.426,90.383,90.313,23.5261]
[1645921389952,5.88030149,90.383,90.313,23.5261]
[1645921390153,1.84338363,90.381,90.313,23.5261]
[1645921390352,4.426,90.38,90.313,23.5261]
[1645921390553,16.6117,90.37,90.313,23.5261]
[1645921390756,4.426,90.389,90.313,23.5261]
[1645921390955,1.71673013,90.396,90.314,4.426]
[1645921392556,16.6099,90.38,90.321,111.2]
[1645921392757,16.6099,90.38,90.322,4.426]
[1645921393862,16.6099,90.38,90.315,4.426]
[1645921394259,16.6082,90.39,90.33,16.6085]
[1645921394658,24.1004,90.397,90.331,111.2]
[1645921394861,24.1004,90.397,90.332,139.9847]
[1645921395461,1.46270776,90.411,90.35,16.6058]
[1645921395661,28.4278,90.428,90.351,135.3011]
[1645921395864,1.68944166,90.438,90.351,162.51378921]
[1645921396366,1.68944166,90.438,90.352,2.74678921]
[1645921396563,1.68944166,90.438,90.37,16.601]
[1645921396768,1.68944166,90.438,90.371,23.9981]
[1645921397466,1.68944166,90.438,90.39,16.5996]
[1645921400477,45.301,90.439,90.39,22.1596]
[1645921402277,45.301,90.439,90.39,16.5996]
[1645921402473,1.84449304,90.438,90.38,16.6011]
[1645921403571,16.6011,90.43,90.38,16.6011]
[1645921407473,6.26849304,90.438,90.38,16.6011]
[1645921407694,1.84449304,90.438,90.38,16.6011]
[1645921408074,45.301,90.439,90.38,16.6011]
[1645921413680,16.5989,90.44,90.38,16.6011]
[1645921414982,1.66781918,90.439,90.38,16.6011]
[1645921415203,16.6008,90.43,90.38,16.6011]
[1645921415505,1.67332014,90.429,90.38,16.6011]
[1645921416105,16.6022,90.42,90.38,16.6011]
[1645921416307,16.6022,90.42,90.371,23.9981]
[1645921418107,1.54672832,90.419,90.371,23.9981]
[1645921419107,1.82874682,90.419,90.371,23.9981]
[1645921421512,16.6022,90.42,90.371,23.9981]
[1645921422112,16.6022,90.42,90.38,16.6018]
[1645921422514,16.6022,90.42,90.371,23.9981]
[1645921422912,1.85433098,90.419,90.371,23.9981]
[1645921423311,16.6035,90.41,90.371,23.9981]
[1645921424012,6.09881646,90.436,90.371,23.9981]
[1645921425513,16.6024,90.42,90.38,16.602]
[1645921425713,1.75350876,90.419,90.371,23.9981]
[1645921426116,4.425,90.427,90.371,23.9981]
[1645921426314,4.425,90.427,90.332,115.626]
[1645921426315,6.08737993,90.427,90.332,4.426]
[1645921426515,16.6036,90.41,90.34,16.6083]
[1645921426715,6.10113728,90.409,90.34,16.6083]
[1645921426918,1.82259247,90.408,90.34,16.6083]
[1645921427116,4.426,90.407,90.334,24.5064]
[1645921427724,16.6079,90.4,90.332,4.426]
[1645921427924,6.37895182,90.399,90.332,4.426]
[1645921428120,23.4582,90.398,90.332,4.426]
[1645921428318,6.39445035,90.397,90.332,4.426]
[1645921429517,16.6103,90.38,90.332,4.426]
[1645921429723,1.95962865,90.379,90.332,4.426]
[1645921430123,7.14,90.38,90.332,4.426]
[1645921431120,16.6106,90.37,90.332,4.426]
[1645921431520,1.83028128,90.378,90.332,4.426]
[1645921431722,1.89311976,90.397,90.332,4.426]
[1645921432023,4.426,90.396,90.332,4.426]
[1645921432321,1.77489737,90.379,90.332,4.426]
[1645921432523,1.47681795,90.396,90.34,16.6087]
[1645921432729,23.4582,90.398,90.34,16.6087]
[1645921434723,16.6069,90.39,90.34,16.6087]
[1645921435927,23.4582,90.398,90.34,16.6087]
[1645921438231,16.6069,90.39,90.34,16.6087]
[1645921442355,1.71694669,90.389,90.34,16.6087]
[1645921442563,16.6105,90.38,90.332,4.426]
[1645921442758,1.82842125,90.379,90.302,23.3831]
[1645921442959,25.38982125,90.379,90.302,23.3831]
[1645921443160,1.54260897,90.378,90.302,23.3831]
[1645921443555,4.426,90.377,90.302,23.3831]
[1645921444458,16.6127,90.37,90.32,16.6123]
[1645921444660,1.57441578,90.369,90.32,16.6123]
[1645921444870,4.426,90.378,90.302,23.3831]
[1645921445060,62.4624,90.37,90.302,23.3831]
[1645921445260,6.00790538,90.369,90.302,23.3831]
[1645921446060,16.6136,90.36,90.302,23.3831]
[1645921446264,1.84219127,90.359,90.31,16.614]
[1645921446463,4.426,90.358,90.302,23.3831]
[1645921447161,4.426,90.358,90.267,97.0519962]
[1645921447162,16.6172,90.35,90.29,16.6178]
[1645921447362,22.5072,90.35,90.29,16.6178]
[1645921447563,1.92161863,90.349,90.29,16.6178]
[1645921447965,4.428,90.348,90.29,16.6178]
[1645921448664,16.6182,90.34,90.29,16.6178]
[1645921451365,1.59206124,90.339,90.29,16.6178]
[1645921451569,16.6193,90.33,90.28,16.6193]
[1645921451768,1.8084184,90.329,90.25,55.4003]
[1645921452068,5.93553377,90.328,90.251,23.0617]
[1645921452268,5.93553377,90.328,90.237,24.6106]
[1645921452668,16.6237,90.31,90.23,16.6275]
[1645921452867,6.05393085,90.309,90.23,16.6275]
[1645921453067,1.8369858,90.308,90.23,16.6275]
[1645921453269,4.431,90.307,90.23,16.6275]
[1645921453468,4.431,90.307,90.216,39.0795962]
[1645921453667,4.431,90.307,90.216,16.7997]
[1645921454567,1.44127092,90.289,90.22,16.6291]
[1645921454768,6.35042138,90.288,90.22,16.6291]
[1645921455070,6.35042138,90.288,90.216,16.7997]
[1645921455467,111.2,90.287,90.152,48.8308]
[1645921455670,111.2,90.285,90.152,48.8308]
[1645921455867,16.03,90.27,90.152,111.2]
[1645921456170,1.94611775,90.249,90.143,112.2]
[1645921456370,5.96306942,90.248,90.143,112.2]
[1645921456671,5.96306942,90.248,90.144,26.10886819]
[1645921456871,23.7048,90.247,90.144,26.10886819]
[1645921457071,6.27466162,90.246,90.135,26.10886819]
[1645921457370,16.6402,90.23,90.15,16.6394]
[1645921457579,5.92349781,90.229,90.134,41.4444]
[1645921458971,1.48949781,90.229,90.134,41.4444]
[1645921459569,16.6424,90.22,90.14,16.6424]
[1645921459773,1.5819388,90.219,90.14,16.6424]
[1645921460571,16.6431,90.21,90.13,16.6444]
[1645921460776,16.6431,90.21,90.126,48.8308]
[1645921460777,6.38609504,90.209,90.126,48.8308]
[1645921461171,4.436,90.209,90.126,48.8308]
[1645921461373,4.436,90.227,90.126,48.8308]
[1645921461772,1.47803536,90.228,90.126,48.8308]
[1645921461974,55.4875,90.22,90.13,16.6441]
[1645921462173,1.63804815,90.219,90.13,16.6441]
[1645921463373,1.63804815,90.219,90.14,16.6426]
[1645921464477,16.6434,90.21,90.14,16.6426]
[1645921464677,1.928971,90.209,90.126,48.8308]
[1645921464878,1.928971,90.209,90.11,55.4768]
[1645921465076,4.436,90.208,90.101,46.6237]
[1645921465276,23.3967706,90.208,90.101,46.6237]
[1645921465479,76.90865453,90.207,90.101,46.6237]
[1645921465677,1.52972878,90.206,90.101,46.6237]
[1645921465877,4.436,90.205,90.101,46.6237]
[1645921466079,32.6755,90.2,90.101,46.6237]
[1645921466277,5.96463539,90.199,90.093,1.3621226]
[1645921466578,29.36140599,90.199,90.093,1.3621226]
[1645921466777,1.88610905,90.198,90.093,1.3621226]
[1645921466980,6.35048764,90.197,90.093,1.3621226]
[1645921467379,29.74725824,90.197,90.093,1.3621226]
[1645921467582,16.6516,90.19,90.093,1.3621226]
[1645921467779,16.03,90.18,90.093,1.3621226]
[1645921467979,6.02096385,90.179,90.093,1.3621226]
[1645921469489,16.6534,90.17,90.093,1.3621226]
[1645921469681,5.97398929,90.169,90.093,1.3621226]
[1645921470088,4.437,90.169,90.093,1.3621226]
[1645921470283,4.437,90.177,90.093,1.3621226]
[1645921470683,16.6557,90.16,90.093,1.3621226]
[1645921470885,5.87211712,90.159,90.093,1.3621226]
[1645921472690,29.26888772,90.159,90.093,1.3621226]
[1645921472895,1.44187331,90.158,90.093,1.3621226]
[1645921473093,4.437,90.157,90.093,1.3621226]
[1645921473288,27.8337706,90.157,90.093,1.3621226]
[1645921473487,1.73918373,90.156,90.093,1.3621226]
[1645921473687,4.437,90.155,90.093,1.3621226]
[1645921474287,1.73918373,90.156,90.093,1.3621226]
[1645921474890,1.73918373,90.156,90.096,7.88]
[1645921475210,1.67596126,90.169,90.096,7.88]
[1645921475389,1.67596126,90.169,90.077,5.6]
[1645921476492,1.67596126,90.169,90.09,16.6506]
[1645921476692,1.67596126,90.169,90.103,7.57]
[1645921477093,1.67596126,90.169,90.091,22.5443]
[1645921477691,1.67596126,90.169,90.1,16.6506]
[1645921478192,1.67596126,90.169,90.11,6.17]
[1645921478390,1.67596126,90.169,90.091,22.5443]
[1645921478592,16.6529,90.16,90.091,22.5443]
[1645921479092,1.56723445,90.174,90.091,22.5443]
[1645921479698,4.436,90.173,90.091,22.5443]
[1645921480497,16.6509,90.17,90.1,16.6506]
[1645921480696,1.79127614,90.169,90.1,16.6506]
[1645921485098,16.6525,90.16,90.091,22.5443]
[1645921485900,1.83424777,90.159,90.091,22.5443]
[1645921489406,1.80051461,90.159,90.091,22.5443]
[1645921492630,16.6525,90.16,90.091,22.5443]
[1645921497730,6.09200068,90.159,90.091,22.5443]
[1645921498330,6.09200068,90.159,90.078,23.1639]
[1645921499130,1.65400068,90.159,90.078,23.1639]
[1645921499631,4.438,90.158,90.078,23.1639]
[1645921500232,23.6338,90.157,90.078,23.1639]
[1645921500435,6.05842952,90.156,90.078,23.1639]
[1645921500631,1.62042952,90.156,90.078,23.1639]
[1645921501335,4.438,90.155,90.078,23.1639]
[1645921503040,1.62042952,90.156,90.078,23.1639]
[1645921503834,1.62042952,90.156,90.079,24.5932]
[1645921504234,1.62042952,90.156,90.08,16.6562]
[1645921505639,111.2,90.154,90.053,4.438]
[1645921505835,16.6633,90.12,90.032,24.6154]
[1645921506035,16.03,90.11,90.032,24.6154]
[1645921507136,16.6637,90.09,90.032,24.6154]
[1645921507335,1.85271062,90.089,90.032,24.6154]
[1645921507636,1.85271062,90.089,90.013,4.99626065]
[1645921507835,4.441,90.088,90.013,0.55526065]
[1645921508034,28.0753,90.088,90.013,0.55526065]
[1645921508238,1.71570491,90.087,90.013,0.55526065]
[1645921508434,16.6664,90.08,90.013,0.55526065]
[1645921508635,1.73394829,90.079,90.013,0.55526065]
[1645921510437,16.6692,90.06,90.013,0.55526065]
[1645921511243,1.59029691,90.059,90.013,0.55526065]
[1645921512342,16.6752,90.05,90.013,0.55526065]
[1645921512544,1.74898275,90.049,90.013,0.55526065]
[1645921512940,4.442,90.048,90.013,0.55526065]
[1645921513639,16.6785,90.04,90.013,0.55526065]
[1645921513844,16.03,90.03,90.013,0.55526065]
[1645921514040,1.42679338,90.029,90.013,0.55526065]
[1645921514442,5.86879338,90.029,90.013,0.55526065]
[1645921515847,1.42679338,90.029,90.013,0.55526065]
[1645921516043,32.71,90.03,90.013,0.55526065]
[1645921518448,34.40145303,90.03,90.013,0.55526065]
[1645921519445,1.61086383,90.029,90.013,0.55526065]
[1645921520648,1.61086383,90.029,90.013,6.065e-05]
[1645921520847,20.0,90.027,89.959,24.4056]
[1645921521049,16.6833,90.01,89.921,4.444]
[1645921521246,1.80780278,90.009,89.916,28.2588]
[1645921521846,4.445,90.008,89.916,28.2588]
[1645921522047,16.6848,89.99,89.916,23.8138]
[1645921522346,6.33964416,89.989,89.916,23.8138]
[1645921523550,16.6899,89.97,89.916,23.8138]
[1645921523756,1.45393463,89.969,89.916,23.8138]
[1645921524148,16.6899,89.97,89.916,23.8138]
[1645921524347,18.19302518,89.97,89.916,23.8138]
[1645921524548,16.6899,89.97,89.916,23.8138]
[1645921524950,18.14220239,89.97,89.916,23.8138]
[1645921525348,1.61551789,89.969,89.916,23.8138]
[1645921525950,16.6897,89.96,89.916,23.8138]
[1645921526253,16.6897,89.96,89.892,4.446]
[1645921526651,1.49562362,89.959,89.892,4.446]
[1645921526853,16.6923,89.95,89.892,4.446]
[1645921527353,1.70374734,89.949,89.892,4.446]
[1645921529154,1.45719942,89.959,89.892,4.446]
[1645921529955,16.6901,89.96,89.892,4.446]
[1645921530254,1.92991803,89.959,89.892,7.19278921]
[1645921530657,16.6922,89.95,89.892,7.19278921]
[1645921530855,1.48922679,89.949,89.892,4.446]
[1645921533258,16.6922,89.95,89.892,4.446]
[1645921534557,1.43702524,89.949,89.892,4.446]
[1645921535156,16.6922,89.95,89.892,4.446]
[1645921535755,6.27060535,89.978,89.892,122.146]
[1645921535957,1.84838485,89.988,89.893,2.74678921]
[1645921536156,1.56461842,89.987,89.894,111.2]
[1645921536357,24.1533,90.009,89.894,138.30604703]
[1645921536559,4.447,90.008,89.895,2.74678921]
[1645921536756,1.95772549,90.007,89.895,45.27067624]
[1645921536956,4.447,90.006,89.896,15.41784]
[1645921537156,1.95772549,90.007,89.9,16.03]
[1645921537458,16.6842,90.0,89.901,15.41784]
[1645921537755,4.447,89.999,89.901,65.39258703]
[1645921537955,25.02488573,89.986,89.901,65.39258703]
[1645921538156,25.02488573,89.986,89.902,42.52388703]
[1645921538356,1.53633202,89.985,89.902,42.52388703]
[1645921538556,1.53633202,89.985,89.92,16.6842]
[1645921539160,23.0499,89.998,89.92,16.6842]
[1645921539358,4.446,90.007,89.922,111.2]
[1645921539560,4.446,90.029,89.94,16.6776]
[1645921539756,6.02001717,90.029,89.941,24.095]
[1645921539959,1.57401717,90.029,89.941,24.095]
[1645921541156,1.57401717,90.029,89.96,16.6772]
[1645921543660,16.6776,90.03,89.96,16.6772]
[1645921544061,1.89358063,90.029,89.96,16.6772]
[1645921544263,16.6787,90.02,89.96,16.6772]
[1645921544460,1.61471581,90.019,89.941,24.095]
[1645921544659,1.75137924,90.019,89.95,16.6796]
[1645921550066,1.7173086,90.036,89.95,16.6796]
[1645921550265,4.444,90.035,89.95,16.6796]
[1645921550666,1.66652699,90.049,89.951,4.444]
[1645921550870,16.6715,90.06,89.981,111.2]
[1645921551069,6.36331169,90.088,89.982,4.442]
[1645921551270,6.0744631,90.108,89.984,111.2]
[1645921551468,6.0744631,90.108,89.985,4.442]
[1645921551866,6.0744631,90.108,89.986,111.2]
[1645921552069,6.0744631,90.108,89.987,4.442]
[1645921552267,1.6324631,90.108,89.988,111.2]
[1645921552467,16.6673,90.09,90.01,16.6677]
[1645921552668,4.441,90.089,90.001,22.5143]
[1645921552866,1.5638547,90.087,90.001,22.5143]
[1645921553066,111.2,90.085,89.983,22.7878]
[1645921553269,16.03,90.07,89.983,22.7878]
[1645921553467,16.03,90.07,89.958,46.561]
[1645921553468,16.6804,90.04,89.958,46.561]
[1645921553667,38.3604,90.04,89.958,46.561]
[1645921553868,1.44527188,90.039,89.958,46.561]
[1645921554268,22.86289544,90.038,89.958,46.561]
[1645921554468,6.24989438,90.037,89.958,46.561]
[1645921554672,1.96547407,90.019,89.958,46.561]
[1645921554871,16.03,90.01,89.958,46.561]
[1645921555069,1.69710018,90.009,89.958,46.561]
[1645921555271,1.67185452,90.028,89.958,46.561]
[1645921555468,1.75103755,90.035,89.958,46.561]
[1645921555871,16.6786,90.02,89.932,4.444]
[1645921556169,27.2271,90.019,89.911,49.1252]
[1645921556369,111.2,90.018,89.911,49.1252]
[1645921556568,1.52318044,90.015,89.911,49.1252]
[1645921556770,115.646,90.014,89.911,49.1252]
[1645921556970,16.03,90.0,89.911,49.1252]
[1645921557172,16.6901,89.98,89.911,49.1252]
[1645921557371,4.447,89.979,89.888,48.1546]
[1645921557570,6.10425926,89.979,89.888,48.1546]
[1645921558571,16.692,89.96,89.89,16.6906]
[1645921558771,1.42481251,89.959,89.89,16.6906]
[1645921558972,7.53,89.96,89.89,16.6906]
[1645921560172,16.6918,89.95,89.888,48.1546]
[1645921560374,1.51521973,89.949,89.888,48.1546]
[1645921560575,1.51521973,89.949,89.855,4.448]
[1645921560773,16.03,89.95,89.855,4.448]
[1645921560972,1.52474473,89.949,89.865,112.2]
[1645921561173,16.6967,89.94,89.865,112.2]
[1645921561494,1.77814992,89.939,89.865,112.2]
[1645921562174,1.73299875,89.939,89.865,112.2]
[1645921562379,1.54120985,89.939,89.865,112.2]
[1645921562577,16.695,89.93,89.846,4.449]
[1645921562780,112.94573229,89.929,89.833,2.74678921]
[1645921562979,111.2,89.927,89.802,4.45]
[1645921563176,6.19083069,89.926,89.803,2.74678921]
[1645921563375,6.19083069,89.926,89.804,4.45]
[1645921563774,1.62937713,89.899,89.81,16.7048]
[1645921563978,1.62937713,89.899,89.811,4.45]
[1645921564383,1.62937713,89.899,89.804,4.45]
[1645921564580,1.92137541,89.909,89.804,4.45]
[1645921564779,1.92137541,89.909,89.812,2.74678921]
[1645921564983,1.92137541,89.909,89.813,4.45]
[1645921565181,1.59975061,89.899,89.81,16.7044]
[1645921565582,28.2834,89.909,89.81,16.7044]
[1645921565785,1.5830312,89.908,89.81,16.7044]
[1645921565984,4.45,89.907,89.81,16.7044]
[1645921566585,4.45,89.907,89.811,26.97715683]
[1645921566785,1.5830312,89.908,89.812,4.45]
[1645921566986,1.5830312,89.908,89.84,16.697]
[1645921567186,1.4783621,89.927,89.841,4.45]
[1645921567385,1.4783621,89.927,89.813,71.56705822]
[1645921567386,1.4783621,89.927,89.814,4.45]
[1645921567589,16.6985,89.92,89.814,4.45]
[1645921567785,1.96145985,89.919,89.83,55.6504]
[1645921567988,1.96145985,89.919,89.816,4.45]
[1645921568286,1.96145985,89.919,89.831,2.74678921]
[1645921568487,1.86687473,89.948,89.832,4.45]
[1645921568687,1.86687473,89.948,89.833,48.026]
[1645921568889,16.6951,89.94,89.84,55.643]
[1645921569098,6.17866442,89.939,89.84,55.643]
[1645921569298,4.449,89.939,89.85,16.6929]
[1645921569498,1.56428608,89.948,89.85,16.6929]
[1645921569698,4.449,89.947,89.85,16.6929]
[1645921570399,4.449,89.947,89.833,48.026]
[1645921570400,1.81844168,89.929,89.833,48.026]
[1645921571001,4.45,89.928,89.833,48.026]
[1645921571200,16.03,89.93,89.833,48.026]
[1645921571399,6.19193699,89.929,89.833,48.026]
[1645921572600,1.89448538,89.919,89.84,16.6985]
[1645921573101,1.89448538,89.919,89.833,48.026]
[1645921573305,4.45,89.918,89.833,48.026]
[1645921573502,6.17264719,89.929,89.833,48.026]
[1645921574103,1.92493105,89.909,89.833,48.026]
[1645921574510,4.45,89.929,89.833,48.026]
[1645921574703,6.22409287,89.929,89.833,48.026]
[1645921574907,111.2,89.928,89.833,48.026]